Department family,Entity,Document_Date,Expense type,Expense area,Supplier,Transaction number, Amount ,VAT registration number
"Department for Culture, Media & Sport",UK Sport,03/03/2020,Grant,WC Events Programme,Yorkshire 2019 ltd,10646," 100,000.00 ",
"Department for Culture, Media & Sport",UK Sport,25/03/2020,Grant,WC Events Programme,Yorkshire 2019 ltd,10721," 100,786.00 ",
"Department for Culture, Media & Sport",UK Sport,26/03/2020,Grant,Summer - Olympic,Grand National Archery Society,10723," 85,000.00 ",
"Department for Culture, Media & Sport",UK Sport,06/03/2020,Grant,EIS- Investment,English Institute of Sport Company,20468512," 1,140,106.00 ",
"Department for Culture, Media & Sport",UK Sport,06/03/2020,Grant,Summer - Olympic,British Judo Association,20468514," 64,906.00 ",
"Department for Culture, Media & Sport",UK Sport,06/03/2020,Grant,Summer - Olympic,GB Taekwondo,20468515," 34,112.00 ",
"Department for Culture, Media & Sport",UK Sport,06/03/2020,Grant,Summer - Olympic,British Gymnastics,20468517," 171,287.00 ",
"Department for Culture, Media & Sport",UK Sport,06/03/2020,Grant,Summer - Olympic,British Triathlon Federation,20468519," 69,139.00 ",
"Department for Culture, Media & Sport",UK Sport,06/03/2020,Grant,Summer - Paralympic,British Triathlon Federation,20468520," 27,979.00 ",
"Department for Culture, Media & Sport",UK Sport,06/03/2020,Grant,Summer - Paralympic,British Rowing,20468521," 25,642.00 ",
"Department for Culture, Media & Sport",UK Sport,06/03/2020,Grant,Summer - Paralympic,United Kingdom Boccia Federation Ltd.,20468522," 29,827.00 ",
"Department for Culture, Media & Sport",UK Sport,06/03/2020,Grant,EIS- Investment,English Institute of Sport Company,20468526," 429,584.00 ",
"Department for Culture, Media & Sport",UK Sport,06/03/2020,Grant,EIS- Investment,English Institute of Sport Company,20468528," 42,277.00 ",
"Department for Culture, Media & Sport",UK Sport,06/03/2020,Grant,Performance additions to WCPP,English Institute of Sport Company,20468529," 122,500.00 ",
"Department for Culture, Media & Sport",UK Sport,06/03/2020,Grant,Performance additions to WCPP,English Institute of Sport Company,20468530," 26,503.00 ",
"Department for Culture, Media & Sport",UK Sport,06/03/2020,Grant,Summer - Paralympic,British Shooting,20468532," 29,812.00 ",
"Department for Culture, Media & Sport",UK Sport,06/03/2020,Grant,Summer - Olympic,British Shooting,20468533," 58,933.00 ",
"Department for Culture, Media & Sport",UK Sport,06/03/2020,Grant,Summer - Olympic,British Swimming,20468534," 186,007.00 ",
"Department for Culture, Media & Sport",UK Sport,06/03/2020,Grant,Summer - Olympic,British Rowing,20468535," 242,318.00 ",
"Department for Culture, Media & Sport",UK Sport,06/03/2020,Grant,Summer - Olympic,British Cycling Federation,20468536," 428,257.00 ",
"Department for Culture, Media & Sport",UK Sport,06/03/2020,Grant,Summer - Olympic,GB Taekwondo,20468537," 29,441.00 ",
"Department for Culture, Media & Sport",UK Sport,06/03/2020,Grant,Summer - Olympic,British Swimming,20468538," 71,847.00 ",
"Department for Culture, Media & Sport",UK Sport,06/03/2020,Grant,Summer - Olympic,Uk Athletics,20468540," 302,735.00 ",
"Department for Culture, Media & Sport",UK Sport,06/03/2020,Grant,Summer - Olympic,British Amateur Boxing Association Ltd,20468541," 189,353.00 ",
"Department for Culture, Media & Sport",UK Sport,06/03/2020,Grant,Summer - Paralympic,British Swimming,20468545," 88,123.00 ",
"Department for Culture, Media & Sport",UK Sport,06/03/2020,Grant,Summer - Paralympic,British Equestrian Federation,20468546," 32,809.00 ",
"Department for Culture, Media & Sport",UK Sport,06/03/2020,Grant,Summer - Paralympic,British Cycling Federation,20468547," 56,124.00 ",
"Department for Culture, Media & Sport",UK Sport,06/03/2020,Grant,Summer - Paralympic,British Canoeing,20468548," 40,111.00 ",
"Department for Culture, Media & Sport",UK Sport,06/03/2020,Grant,Summer - Paralympic,Uk Athletics,20468550," 88,147.00 ",
"Department for Culture, Media & Sport",UK Sport,06/03/2020,Grant,Summer - Paralympic,Grand National Archery Society,20468551," 30,243.00 ",
"Department for Culture, Media & Sport",UK Sport,06/03/2020,Grant,Summer - Paralympic,British Table Tennis Association for the,20468552," 31,082.00 ",
"Department for Culture, Media & Sport",UK Sport,06/03/2020,Grant,Summer - Olympic,Royal Yachting Association,20468553," 192,419.00 ",
"Department for Culture, Media & Sport",UK Sport,06/03/2020,Grant,Summer - Olympic,Pentathlon GB,20468554," 56,068.00 ",
"Department for Culture, Media & Sport",UK Sport,06/03/2020,Grant,Summer - Olympic,England Hockey,20468555," 124,790.00 ",
"Department for Culture, Media & Sport",UK Sport,06/03/2020,Grant,Summer - Olympic,British Equestrian Federation,20468556," 163,931.00 ",
"Department for Culture, Media & Sport",UK Sport,06/03/2020,Grant,EIS- Investment,English Institute of Sport Company,20468558," 55,555.00 ",
"Department for Culture, Media & Sport",UK Sport,06/03/2020,Grant,Summer - Paralympic,Great Britain Wheelchair Basketball Asso,20468561," 51,699.00 ",
"Department for Culture, Media & Sport",UK Sport,06/03/2020,Grant,Summer - Olympic,British Canoeing,20468563," 164,718.00 ",
"Department for Culture, Media & Sport",UK Sport,07/04/2020,Grant,World Class Operations,Sports Coach UK,20694931," 75,000.00 ",
"Department for Culture, Media & Sport",UK Sport,07/04/2020,Grant,World Class Operations,Sport Resolutions UK,20694932," 71,250.00 ",
"Department for Culture, Media & Sport",UK Sport,07/04/2020,Grant,Aspiration  - Olympic,Skateboard GB Limited,20694934," 41,850.00 ",
"Department for Culture, Media & Sport",UK Sport,07/04/2020,Grant,Performance additions to WCPP,English Institute of Sport Company,20694936," 98,033.00 ",
"Department for Culture, Media & Sport",UK Sport,07/04/2020,Grant,Aspiration - Paralympic,Great Britain Wheelchair Rugby,20694937," 42,500.00 ",
"Department for Culture, Media & Sport",UK Sport,07/04/2020,Grant,Aspiration  - Olympic,British Swimming,20694938," 27,500.00 ",
"Department for Culture, Media & Sport",UK Sport,07/04/2020,Grant,EIS- Investment,English Institute of Sport Company,20694939," 166,492.00 ",
"Department for Culture, Media & Sport",UK Sport,07/04/2020,Grant,EIS- Investment,English Institute of Sport Company,20694940," 577,183.00 ",
"Department for Culture, Media & Sport",UK Sport,07/04/2020,Grant,Performance additions to WCPP,English Institute of Sport Company,20694942," 83,904.00 ",
"Department for Culture, Media & Sport",UK Sport,07/04/2020,Grant,EIS- Investment,English Institute of Sport Company,20694943," 31,379.00 ",
"Department for Culture, Media & Sport",UK Sport,07/04/2020,Grant,Aspiration - Paralympic,Badminton England,20694944," 53,665.00 ",
"Department for Culture, Media & Sport",UK Sport,07/04/2020,Grant,Summer - Paralympic,Great Britain Wheelchair Basketball Asso,20694945," 26,807.00 ",
"Department for Culture, Media & Sport",UK Sport,07/04/2020,Grant,Summer - Paralympic,Badminton England,20694948," 85,315.00 ",
"Department for Culture, Media & Sport",UK Sport,07/04/2020,Grant,Summer - Olympic,British Fencing Association,20694949," 42,807.00 ",
"Department for Culture, Media & Sport",UK Sport,07/04/2020,Grant,Summer - Olympic,British Amateur Boxing Association Ltd,20694950," 166,075.00 ",
"Department for Culture, Media & Sport",UK Sport,07/04/2020,Grant,Summer - Olympic,British Swimming,20694951," 32,808.00 ",
"Department for Culture, Media & Sport",UK Sport,07/04/2020,Grant,Summer - Paralympic,British Shooting,20694955," 64,326.00 ",
"Department for Culture, Media & Sport",UK Sport,07/04/2020,Grant,Summer - Olympic,British Rowing,20694958," 97,584.00 ",
"Department for Culture, Media & Sport",UK Sport,07/04/2020,Grant,Summer - Olympic,GB Taekwondo,20694959," 103,499.00 ",
"Department for Culture, Media & Sport",UK Sport,07/04/2020,Grant,Summer - Olympic,British Gymnastics,20694961," 256,681.00 ",
"Department for Culture, Media & Sport",UK Sport,07/04/2020,Grant,Summer - Olympic,British Canoeing,20694963," 68,668.00 ",
"Department for Culture, Media & Sport",UK Sport,07/04/2020,Grant,Summer - Olympic,Badminton England,20694964," 46,126.00 ",
"Department for Culture, Media & Sport",UK Sport,07/04/2020,Grant,Summer - Paralympic,British Canoeing,20694965," 34,239.00 ",
"Department for Culture, Media & Sport",UK Sport,07/04/2020,Grant,Summer - Olympic,British Equestrian Federation,20694966," 263,882.00 ",
"Department for Culture, Media & Sport",UK Sport,07/04/2020,Grant,Summer - Olympic,British Cycling Federation,20694969," 275,985.00 ",
"Department for Culture, Media & Sport",UK Sport,07/04/2020,Grant,Aspiration  - Olympic,British Mountaineering Council,20694971," 29,550.00 ",
"Department for Culture, Media & Sport",UK Sport,07/04/2020,Grant,Performance additions to WCPP,English Institute of Sport Company,20694972," 50,711.00 ",
"Department for Culture, Media & Sport",UK Sport,07/04/2020,Grant,Performance additions to WCPP,English Institute of Sport Company,20694977," 35,080.00 ",
"Department for Culture, Media & Sport",UK Sport,07/04/2020,Grant,EIS- Investment,English Institute of Sport Company,20694978," 3,185,655.00 ",
"Department for Culture, Media & Sport",UK Sport,07/04/2020,Grant,Aspiration  - Olympic,English Table Tennis Association,20694982," 62,476.00 ",
"Department for Culture, Media & Sport",UK Sport,07/04/2020,Grant,Summer - Olympic,Uk Athletics,20694984," 170,203.00 ",
"Department for Culture, Media & Sport",UK Sport,07/04/2020,Grant,Summer - Paralympic,GB Taekwondo,20694985," 29,872.00 ",
"Department for Culture, Media & Sport",UK Sport,07/04/2020,Grant,EIS- Investment,English Institute of Sport Company,20694986," 46,984.00 ",
"Department for Culture, Media & Sport",UK Sport,07/04/2020,Grant,Performance additions to WCPP,English Institute of Sport Company,20694987," 35,718.00 ",
"Department for Culture, Media & Sport",UK Sport,20/02/2020,Rent,Facilities ,GVA Grimley Ltd Client A/c,10733," 150,751.00 ",
"Department for Culture, Media & Sport",UK Sport,24/03/2020,Subscription,Performance Advisors Team,Gracenote,10745," 137,213.31 ",
"Department for Culture, Media & Sport",UK Sport,23/02/2020,Consultancy Research,ME Programme,Sheffield Hallam Uni Enterprise,30253," 27,000.00 ",
"Department for Culture, Media & Sport",UK Sport,19/03/2020,Consultancy,International Relations,Horizon37 Ltd,30407," 25,320.00 ",
"Department for Culture, Media & Sport",UK Sport,13/03/2020,Rate,Services,London Borough of Camden,30456," 219,450.00 ",
"Department for Culture, Media & Sport",UK Sport,16/03/2020,Service Charges,Services,GVA Grimley Ltd Client A/c,30457," 33,044.52 ",
"Department for Culture, Media & Sport",UK Sport,16/03/2020,Service Charges,Services,GVA Grimley Ltd Client A/c,30458," 38,914.39 ",
